bitfinex/quotes_SOLUSD_20240909
["timestamp","ask_amount","ask_price","bid_price","bid_amount"]
[1725870708757,0.8466108,130.33,130.3,10.09352244]
[1725870708964,0.8466108,130.33,130.26,36.351]
[1725870709282,0.8466108,130.33,130.3,10.09352244]
[1725870709457,7.3631108,130.33,130.29,10.09352244]
[1725870710354,7.3631108,130.33,130.31,10.09352244]
[1725870710679,0.8466108,130.33,130.31,10.09352244]
[1725870716968,0.8466108,130.33,130.32,20.0]
[1725870720577,0.8466108,130.33,130.31,10.09352244]
[1725870721978,0.8466108,130.33,130.31,11.6278439]
[1725870722385,0.8466108,130.33,130.31,10.09352244]
[1725870723181,0.8466108,130.33,130.32,20.0]
[1725870725697,0.8466108,130.33,130.31,10.09352244]
[1725870726508,0.8466108,130.33,130.32,20.0]
[1725870727295,6.2062,130.39,130.32,30.09352244]
[1725870727635,21.5388,130.42,130.37,10.09352244]
[1725870729705,6.4442,130.45,130.41,10.078825]
[1725870730713,0.8466108,130.46,130.43,10.078825]
[1725870730916,0.8466108,130.46,130.45,10.078825]
[1725870732191,0.8466108,130.46,130.38,15.9723]
[1725870732408,0.8466108,130.46,130.41,25.18208642]
[1725870733908,0.8466108,130.46,130.43,25.18208642]
[1725870734113,0.8466108,130.46,130.45,25.18208642]
[1725870734696,4.995,130.5,130.45,25.18208642]
[1725870734907,4.995,130.5,130.47,25.18208642]
[1725870736121,4.995,130.5,130.49,25.18208642]
[1725870737387,6.4781,130.54,130.51,25.18208642]
[1725870737588,6.4781,130.54,130.52,1.53192483]
[1725870737827,6.4781,130.54,130.49,25.18208642]
[1725870737991,6.4781,130.54,130.47,7.704]
[1725870737992,6.4781,130.54,130.47,25.18208642]
[1725870739200,6.4781,130.54,130.45,25.18208642]
[1725870739399,6.4781,130.54,130.46,1.53244189]
[1725870739715,6.4781,130.54,130.45,25.18208642]
[1725870740406,16.2362,130.53,130.43,40.88678642]
[1725870741022,16.2362,130.53,130.43,50.86499366]
[1725870742214,16.2362,130.53,130.44,20.0]
[1725870743224,16.2362,130.53,130.45,1.53267924]
[1725870743727,13.929,130.52,130.41,25.18208642]
[1725870743927,33.929,130.52,130.41,25.18208642]
[1725870744128,26.267,130.52,130.41,25.18687562]
[1725870744634,33.9286,130.52,130.41,25.18687562]
[1725870745203,7.6629,130.5,130.39,41.27607562]
[1725870745510,15.293,130.48,130.37,35.18854514]
[1725870746920,15.293,130.48,130.39,25.18687562]
[1725870747110,15.293,130.48,130.4,20.0]
[1725870747925,15.293,130.48,130.39,25.18687562]
[1725870747926,15.293,130.48,130.37,35.18854514]
[1725870748133,22.9571,130.48,130.37,35.18854514]
[1725870748514,15.293,130.48,130.37,35.18854514]
[1725870748829,6.0384,130.47,130.37,25.18687562]
[1725870749043,26.0384,130.47,130.37,25.18687562]
[1725870749335,33.703,130.47,130.36,25.18687562]
[1725870749628,7.6654,130.46,130.36,25.18687562]
[1725870750628,26.0384,130.47,130.36,25.18687562]
[1725870750629,26.0384,130.47,130.36,45.16666283]
[1725870750926,33.7033,130.47,130.36,35.16499331]
[1725870751140,6.304,130.46,130.36,25.18687562]
[1725870751426,13.9709,130.43,130.33,1.33494539]
[1725870751628,6.304,130.43,130.33,1.33494539]
[1725870751809,7.6677,130.42,130.3,61.30637562]
[1725870752009,6.304,130.41,130.3,41.30637562]
[1725870752338,6.304,130.41,130.32,25.18687562]
[1725870752509,6.304,130.41,130.33,1.53398602]
[1725870752703,6.304,130.41,130.34,25.18687562]
[1725870753244,6.304,130.41,130.32,25.18687562]
[1725870753947,15.3449,130.4,130.3,50.50989331]
[1725870754154,15.3449,130.4,130.28,25.18687562]
[1725870754155,6.304,130.39,130.28,25.18687562]
[1725870754322,79.1668,130.44,130.26,35.16499331]
[1725870754323,6.304,130.36,130.26,35.16499331]
[1725870754523,6.304,130.36,130.25,20.5035438]
[1725870754836,6.304,130.34,130.3,25.18687562]
[1725870755328,6.304,130.34,130.26,19.97978721]
[1725870755329,6.304,130.34,130.32,25.18687562]
[1725870755529,15.3449,130.37,130.32,25.18687562]
[1725870755730,15.3449,130.37,130.33,1.53409332]
[1725870756050,15.3449,130.37,130.32,25.18687562]
[1725870758218,6.3493,130.38,130.32,25.18687562]
[1725870758436,6.3493,130.41,130.36,25.18687562]
[1725870758640,16.1355,130.44,130.39,25.18687562]
[1725870758843,6.3493,130.45,130.4,1.53327656]
[1725870759235,6.3493,130.45,130.41,1.53318931]
[1725870759730,6.3493,130.45,130.39,25.18687562]
[1725870760332,6.3493,130.45,130.41,25.18687562]
[1725870761656,6.3264,130.48,130.43,25.18687562]
[1725870762849,6.3264,130.48,130.41,25.18687562]
[1725870764145,6.3264,130.48,130.39,25.18687562]
[1725870764348,13.9907,130.48,130.37,25.18687562]
[1725870764643,20.0,130.47,130.37,25.18687562]
[1725870765648,16.1368,130.46,130.37,25.18687562]
[1725870766444,6.5484,130.45,130.37,25.18687562]
[1725870767152,6.5484,130.45,130.33,16.217]
[1725870767464,27.6665,130.44,130.34,25.18687562]
[1725870767866,20.0,130.44,130.34,25.18687562]
[1725870768185,20.0,130.44,130.36,25.18687562]
[1725870769175,27.6663,130.44,130.34,25.18687562]
[1725870770250,20.0,130.44,130.34,25.18687562]
[1725870771173,13.6774,130.43,130.34,25.18687562]
[1725870771354,15.7354,130.42,130.34,25.18687562]
[1725870771538,23.4029,130.42,130.34,25.18687562]
[1725870771963,15.7354,130.42,130.34,25.18687562]
[1725870772371,6.0814,130.41,130.32,25.18687562]
[1725870772761,13.7498,130.41,130.3,41.49427562]
[1725870772959,6.0814,130.41,130.32,25.18687562]
[1725870773273,6.0814,130.41,130.36,25.18687562]
[1725870774568,6.0814,130.41,130.34,25.18687562]
[1725870775767,6.0814,130.41,130.36,25.18687562]
[1725870777371,6.0814,130.41,130.38,25.18687562]
[1725870778073,6.0814,130.41,130.39,1.53362823]
[1725870778373,6.0814,130.41,130.38,25.18687562]
[1725870779764,6.0814,130.41,130.36,25.18687562]
[1725870780275,6.0814,130.41,130.34,25.18687562]
[1725870781974,6.0814,130.41,130.32,15.8862]
[1725870781975,13.7497,130.41,130.32,25.18687562]
[1725870782472,6.0814,130.41,130.32,25.18687562]
[1725870785987,6.0814,130.41,130.33,1.53424342]
[1725870786181,6.0814,130.41,130.32,25.18687562]
[1725870787786,6.0814,130.41,130.33,1.53422973]
[1725870788094,6.0814,130.41,130.32,25.18687562]
[1725870789894,6.0814,130.41,130.34,25.18687562]
[1725870791574,6.0814,130.41,130.36,25.18687562]
[1725870793294,6.0814,130.41,130.31,2.46007752]
[1725870793487,6.0814,130.41,130.31,25.18687562]
[1725870793799,6.0814,130.41,130.33,25.18687562]
[1725870797472,6.0814,130.41,130.35,25.18687562]
[1725870799408,6.0814,130.41,130.33,25.18687562]
[1725870801096,6.0814,130.41,130.31,2.46012588]
[1725870801311,6.0814,130.41,130.35,25.18687562]
[1725870802304,6.0814,130.41,130.33,25.18687562]
[1725870802602,6.0814,130.41,130.34,20.0]
[1725870803207,6.0814,130.41,130.33,25.18687562]
[1725870803898,21.1171,130.4,130.3,27.64716323]
[1725870804402,21.1171,130.4,130.32,25.18687562]
[1725870805113,21.1171,130.4,130.33,1.53424263]
[1725870805290,21.1171,130.4,130.32,25.18687562]
[1725870807797,21.1171,130.4,130.34,25.18687562]
[1725870812314,21.1171,130.4,130.34,27.64731105]
[1725870812484,21.1171,130.4,130.34,25.18687562]
[1725870813312,21.1171,130.4,130.34,27.64731105]
[1725870813486,21.1171,130.4,130.34,25.18687562]
[1725870813692,21.1171,130.4,130.32,25.18687562]
[1725870814010,21.1171,130.4,130.33,2.46043543]
[1725870814384,21.1171,130.4,130.3,25.18687562]
[1725870814609,21.1171,130.4,130.33,2.46054572]
[1725870815186,21.1171,130.4,130.32,3.99483199]
[1725870815392,21.1171,130.4,130.33,1.53428424]
[1725870815595,21.1171,130.4,130.33,3.99482996]
[1725870815813,21.1171,130.4,130.32,27.64742134]
[1725870816196,21.1171,130.4,130.32,2.46054572]
[1725870816905,6.0885,130.39,130.32,2.46054572]
[1725870817098,6.0885,130.34,130.27,2.46054572]
[1725870817300,6.0885,130.34,130.28,2.46054572]
[1725870817301,15.2796,130.33,130.28,2.46054572]
[1725870817502,15.2796,130.33,130.26,2.46054572]
[1725870817729,15.2796,130.33,130.25,2.46054572]
[1725870818102,6.5483,130.32,130.24,25.18687562]
[1725870818716,6.5483,130.32,130.26,25.18687562]
[1725870819421,6.5483,130.32,130.24,25.18687562]
[1725870819590,6.5483,130.32,130.25,20.0]
[1725870819795,6.5483,130.32,130.26,1.53505528]
[1725870819988,6.5483,130.32,130.27,1.53496306]
[1725870820392,6.5483,130.32,130.28,4.88571656]
[1725870820592,6.5483,130.32,130.29,4.88571656]
[1725870820892,6.5483,130.32,130.26,25.18687562]
[1725870821114,6.5483,130.32,130.27,4.884224]
[1725870821413,6.5483,130.32,130.28,4.884224]
[1725870821621,6.5483,130.32,130.29,4.884224]
[1725870821924,6.5483,130.32,130.27,4.884224]
[1725870822092,6.5483,130.32,130.28,4.884224]
[1725870822293,6.5483,130.32,130.26,25.18687562]
[1725870822494,6.5483,130.32,130.27,4.88413608]
[1725870822791,6.5483,130.32,130.28,30.0710117]
[1725870822992,6.5483,130.32,130.29,4.88413608]
[1725870823202,6.5483,130.32,130.27,4.88413608]
[1725870823414,6.5483,130.32,130.28,4.88413608]
[1725870823620,6.5483,130.32,130.29,4.88413608]
[1725870823918,6.5483,130.32,130.27,4.88282087]
[1725870824216,6.5483,130.32,130.28,4.88282087]
[1725870824524,6.5483,130.32,130.26,25.18687562]
[1725870824525,6.5483,130.32,130.27,4.88282087]
[1725870824719,6.5483,130.32,130.28,4.88283494]
[1725870825022,6.5483,130.32,130.29,4.88283494]
[1725870825317,6.5483,130.32,130.28,4.88283494]
[1725870825524,6.5483,130.32,130.29,4.88283494]
[1725870825702,6.5483,130.32,130.27,6.41786563]
[1725870825904,6.5483,130.32,130.28,4.88283494]
[1725870826417,6.5483,130.32,130.27,4.88283494]
[1725870826620,6.5483,130.32,130.28,4.88283494]
[1725870826826,6.5483,130.32,130.26,25.18687562]
[1725870827013,6.5483,130.32,130.27,4.88171631]
[1725870827203,6.5483,130.32,130.26,25.18687562]
[1725870830429,6.5483,130.32,130.25,20.0]
[1725870830717,6.5483,130.32,130.25,21.53503929]
[1725870830921,6.5483,130.32,130.26,25.18687562]
[1725870831126,6.5483,130.32,130.27,1.53489315]
[1725870831421,6.5483,130.32,130.28,1.53483651]
[1725870831627,6.5483,130.32,130.26,25.18687562]
[1725870832407,6.5483,130.32,130.27,1.53480652]
[1725870832609,6.5483,130.32,130.26,25.18687562]
[1725870833906,6.5483,130.32,130.25,20.0]
[1725870834317,6.5483,130.32,130.24,25.18687562]
[1725870834721,6.5483,130.32,130.22,26.52376351]
[1725870835020,16.3362,130.31,130.23,20.0]
[1725870835218,16.3362,130.31,130.22,25.18687562]
[1725870835219,6.3793,130.3,130.22,25.18687562]
[1725870837410,6.3793,130.3,130.23,1.53535635]
[1725870837812,6.3793,130.3,130.22,25.18687562]
[1725870839810,16.1357,130.29,130.22,25.18687562]
[1725870840218,16.1357,130.29,130.2,25.18687562]
[1725870840536,16.1357,130.29,130.21,20.0]
[1725870840710,16.1357,130.29,130.22,26.72218982]
[1725870841333,16.1357,130.29,130.22,25.18687562]
[1725870841543,16.1357,130.29,130.22,26.7222417]
[1725870841720,16.1357,130.29,130.24,25.18687562]
[1725870848920,16.1357,130.29,130.25,1.53516561]
[1725870849116,16.1357,130.29,130.24,25.18687562]
[1725870849509,16.1357,130.29,130.25,1.53502373]
[1725870849935,16.1357,130.29,130.24,25.18687562]
[1725870851036,6.3793,130.3,130.26,25.18687562]
[1725870851243,6.3793,130.3,130.27,1.5348985]
[1725870851822,6.3793,130.3,130.26,25.18687562]
[1725870852534,6.3793,130.3,130.24,25.18687562]
[1725870852735,6.3793,130.3,130.26,25.18687562]
[1725870855833,6.3793,130.3,130.27,1.53498533]
[1725870856333,6.3793,130.3,130.26,25.18687562]
[1725870856724,6.3793,130.3,130.24,25.18687562]
[1725870856928,6.3793,130.3,130.22,25.18687562]
[1725870857233,6.3793,130.3,130.2,25.18687562]
[1725870857441,6.3562,130.28,130.18,25.18687562]
[1725870858245,19.1824,130.33,130.16,25.18687562]
[1725870858246,6.3562,130.26,130.16,25.18687562]
[1725870858922,6.3562,130.26,130.17,1.53596932]
[1725870859117,6.3562,130.26,130.16,25.18687562]
[1725870859742,6.3562,130.26,130.18,25.18687562]
[1725870860528,6.3562,130.26,130.19,1.53584903]
[1725870860727,6.3562,130.26,130.18,25.18687562]
[1725870860728,6.3562,130.26,130.2,25.18687562]
[1725870860944,6.3562,130.26,130.18,25.18687562]
[1725870861347,6.3562,130.26,130.16,25.18687562]
[1725870862440,6.3562,130.26,130.16,25.39861232]
[1725870864149,15.5933,130.25,130.16,25.39861232]
[1725870864451,6.3823,130.24,130.16,25.39861232]
[1725870865467,6.3823,130.24,130.17,1.53610033]
[1725870865751,6.3823,130.24,130.18,1.53594073]
[1725870867050,6.3823,130.24,130.16,25.39861232]
[1725870867051,6.3823,130.24,130.17,1.53593503]
[1725870867228,6.3823,130.24,130.18,1.53601486]
[1725870868418,6.3823,130.24,130.17,1.53594582]
[1725870868619,6.3823,130.24,130.18,1.53601481]
[1725870869754,6.3823,130.24,130.17,1.5359569]
[1725870869944,6.3823,130.24,130.18,1.53596495]
[1725870870655,6.3823,130.24,130.18,26.72284057]
[1725870870953,6.3823,130.24,130.19,1.53580515]
[1725870872546,6.3823,130.24,130.18,25.18687562]
[1725870877254,6.3823,130.24,130.16,25.39861232]
[1725870877565,6.3823,130.24,130.17,1.53602104]
[1725870877776,6.3823,130.24,130.18,1.53603242]
[1725870878237,6.3823,130.24,130.19,10.11232282]
[1725870881242,6.3823,130.24,130.2,1.535953]
[1725870882165,6.3823,130.24,130.19,10.11232282]
[1725870883051,6.3823,130.24,130.2,1.53589663]
[1725870884361,6.3823,130.24,130.2,1.53587587]
[1725870885566,6.3823,130.24,130.2,1.53586502]
[1725870886467,6.3823,130.24,130.19,10.11232282]
[1725870887462,6.3823,130.24,130.2,4.90420022]
[1725870887666,6.3823,130.24,130.21,4.90420022]
[1725870887967,6.3823,130.24,130.22,4.90420022]
[1725870888174,6.3823,130.24,130.17,10.11232282]
[1725870888175,6.3823,130.24,130.16,10.32405952]
[1725870888471,6.3823,130.24,130.17,4.90623755]
[1725870888671,6.3823,130.24,130.18,4.90623755]
[1725870888972,6.3823,130.24,130.16,10.32405952]
[1725870889160,6.3823,130.24,130.19,4.90653002]
[1725870889367,6.3823,130.24,130.16,10.32405952]
[1725870891369,6.3823,130.24,130.18,10.11232282]
[1725870892071,15.5198,130.23,130.16,0.2117367]
[1725870892268,6.1689,130.22,130.16,0.2117367]
[1725870893971,6.1689,130.22,130.16,10.32405952]
[1725870894969,6.1689,130.22,130.17,1.53610941]
[1725870898084,6.1689,130.22,130.16,10.32405952]
[1725870899506,6.1689,130.22,130.16,0.2117367]
[1725870902278,6.1689,130.22,130.16,1.74797663]
[1725870902482,6.1689,130.22,130.17,10.11232282]
[1725870902795,6.1689,130.22,130.19,10.11232282]
[1725870903782,6.1689,130.22,130.18,46.53589244]
[1725870903783,6.1689,130.22,130.21,10.11232282]
[1725870906589,6.3116,130.25,130.21,10.11232282]
[1725870906773,6.3116,130.25,130.18,45.0]
[1725870906971,6.3116,130.25,130.21,10.11232282]
[1725870907676,6.3116,130.25,130.21,10.32405952]
[1725870908065,6.3116,130.25,130.21,0.2117367]
[1725870915974,15.4546,130.24,130.21,0.2117367]
[1725870918002,6.3116,130.25,130.21,10.32405952]
[1725870919008,6.3116,130.25,130.22,1.53557605]
[1725870919501,6.3116,130.25,130.21,10.32405952]
[1725870919676,6.3116,130.25,130.22,1.53559087]
[1725870919879,6.3116,130.25,130.21,10.32405952]
[1725870920804,6.3116,130.25,130.21,0.2117367]
[1725870922184,6.3116,130.25,130.21,10.32405952]
[1725870925198,22.1682,130.3,130.23,10.11232282]
[1725870925381,20.0,130.29,130.23,10.11232282]
[1725870925714,20.0,130.29,130.21,10.32405952]
[1725870930989,20.0,130.29,130.21,0.2117367]
[1725870931188,20.0,130.29,130.21,10.32405952]
[1725870932411,6.3705,130.28,130.21,0.2117367]
[1725870932911,14.0462,130.28,130.21,0.2117367]
[1725870933090,20.0,130.27,130.21,0.2117367]
[1725870933497,15.9849,130.26,130.21,0.2117367]
[1725870934695,15.9849,130.26,130.21,10.32405952]
[1725870934894,6.3705,130.28,130.21,10.32405952]
[1725870935300,6.3705,130.28,130.22,1.53548665]
[1725870936497,6.3705,130.28,130.23,10.11232282]
[1725870936818,6.3705,130.28,130.25,10.11232282]
[1725870938205,6.3705,130.28,130.24,0.2117367]
[1725870939409,7.6765,130.27,130.24,0.2117367]
[1725870939618,14.0463,130.28,130.24,0.2117367]
[1725870939814,20.0,130.27,130.24,0.2117367]
[1725870941710,6.3705,130.28,130.24,0.2117367]
[1725870949410,6.3705,130.28,130.25,4.9130379]
[1725870949605,6.3705,130.28,130.26,4.9130379]
[1725870949924,6.3705,130.28,130.24,0.2117367]
[1725870950130,6.3705,130.28,130.25,4.91271628]
[1725870950334,6.3705,130.28,130.26,4.91271628]
[1725870950523,6.3705,130.28,130.24,0.2117367]
[1725870950829,6.3705,130.28,130.25,4.9124653]
[1725870951035,6.3705,130.28,130.26,4.9124653]
[1725870951212,36.1275,130.27,130.24,0.2117367]
[1725870951633,43.8039,130.27,130.24,0.2117367]
[1725870952828,36.1275,130.27,130.24,0.2117367]
[1725870954621,16.1275,130.27,130.24,0.2117367]
[1725870954816,6.1643,130.26,130.24,0.2117367]
[1725870955117,27.6775,130.25,130.24,0.2117367]
[1725870957435,7.6788,130.23,130.15,16.3881]
[1725870958106,20.0,130.25,130.15,16.3881]
[1725870958333,7.6782,130.24,130.15,16.3881]
[1725870958530,20.0,130.23,130.15,16.3881]
[1725870960608,20.0,130.23,130.15,41.67215097]
[1725870960809,27.6776,130.25,130.16,45.0]
[1725870961236,27.6776,130.25,130.15,41.67215097]
[1725870961237,7.6781,130.24,130.15,41.67215097]
[1725870961415,20.0,130.23,130.15,16.3881]
[1725870961614,27.6787,130.23,130.15,16.3881]
[1725870961817,20.0,130.23,130.15,16.3881]
[1725870962010,22.6207,130.22,130.12,15.7988]
[1725870962417,20.0,130.21,130.12,15.7988]
[1725870963027,7.6808,130.2,130.11,0.8391501]
[1725870963216,20.0,130.19,130.11,0.8391501]
[1725870965320,27.68,130.21,130.11,0.8391501]
[1725870965522,27.68,130.21,130.11,45.8391501]
[1725870966638,20.0,130.21,130.11,45.8391501]
[1725870966839,20.0,130.21,130.11,71.12320107]
[1725870968824,7.6804,130.2,130.11,0.8391501]
[1725870969036,27.6802,130.21,130.11,2.37595582]
[1725870969237,27.6802,130.21,130.11,0.8391501]
[1725870969745,7.6805,130.2,130.11,0.8391501]
[1725870969937,27.6801,130.21,130.11,0.8391501]
[1725870971442,27.6801,130.21,130.11,26.12320107]
[1725870972039,27.6801,130.21,130.11,0.8391501]
[1725870972232,7.6805,130.2,130.11,0.8391501]
[1725870973636,27.6799,130.21,130.11,0.8391501]
[1725870973944,20.0,130.21,130.11,71.12320107]
[1725870974143,20.0,130.21,130.12,20.0]
[1725870975025,22.6207,130.22,130.12,20.0]
[1725870976853,22.6207,130.22,130.13,45.0]
[1725870977038,30.3,130.22,130.12,20.0]
[1725870977639,22.6207,130.22,130.12,20.0]
[1725870978356,22.6207,130.22,130.13,45.0]
[1725870979150,7.6812,130.19,130.11,0.8391501]
[1725870980356,22.6207,130.22,130.11,0.8391501]
[1725870980357,15.9447,130.16,130.11,0.8391501]
[1725870982056,20.0,130.15,130.11,0.8391501]
[1725870983236,27.6835,130.15,130.11,0.8391501]
[1725870985356,7.6847,130.13,130.11,0.8391501]
[1725870985558,6.6424,130.12,130.11,0.8391501]
[1725870986678,14.3276,130.12,130.11,0.8391501]
[1725870987046,34.3276,130.12,130.11,0.8391501]
[1725870987561,26.6424,130.12,130.11,0.8391501]
[1725870988180,15.9447,130.16,130.11,0.8391501]
[1725870988466,6.6605,130.16,130.11,0.8391501]
[1725870990155,20.11702041,130.17,130.11,0.8391501]
[1725870992570,6.5747,130.19,130.11,0.8391501]
[1725870994259,6.2928,130.22,130.14,25.33052505]
[1725870995653,6.2928,130.22,130.12,47.18362505]
[1725870995849,6.2928,130.22,130.13,20.0]
[1725870999373,13.9721,130.22,130.13,20.0]
[1725870999667,13.9721,130.22,130.12,47.18362505]
[1725870999881,13.9721,130.22,130.13,20.0]
[1725871001565,7.6799,130.21,130.13,20.0]
[1725871001767,7.6809,130.2,130.12,15.4285]
[1725871001960,20.0,130.19,130.12,15.4285]
[1725871002163,20.0,130.19,130.11,0.8391501]
[1725871002373,27.6812,130.19,130.11,0.8391501]
[1725871008078,22.3761,130.18,130.11,0.8391501]
[1725871009475,30.0578,130.18,130.11,0.8391501]
[1725871009688,22.3761,130.18,130.11,0.8391501]
[1725871012594,6.2056,130.18,130.12,26.86754054]
[1725871012911,6.2056,130.18,130.11,0.8391501]
[1725871012912,15.0067,130.21,130.14,25.33052505]
[1725871014069,6.0331,130.22,130.14,25.33052505]
[1725871014583,6.0331,130.22,130.16,25.33052505]
[1725871015068,6.0331,130.22,130.15,15.2074]
[1725871015271,6.0331,130.22,130.16,4.93370195]
[1725871015464,6.0331,130.22,130.12,15.2074]
[1725871015666,20.0,130.21,130.13,4.93445604]
[1725871015991,20.0,130.21,130.14,4.93445604]
[1725871016190,27.6799,130.21,130.15,4.93445604]
[1725871016375,16.1972,130.2,130.11,0.8391501]
[1725871016574,16.1972,130.2,130.12,4.936754]
[1725871016575,20.0,130.19,130.12,4.936754]
[1725871016787,20.0,130.19,130.13,4.936754]
[1725871016962,20.0,130.19,130.11,0.8391501]
[1725871017163,6.4739,130.18,130.12,4.93701248]
[1725871017363,6.4739,130.18,130.13,4.93701248]
[1725871017594,6.4739,130.18,130.11,0.8391501]
[1725871017761,6.4739,130.18,130.12,4.93747814]
[1725871017961,5.4739,130.18,130.13,4.93747814]
[1725871018178,5.4739,130.18,130.11,0.8391501]
[1725871018492,5.4739,130.18,130.12,4.9383364]
[1725871018668,20.0,130.17,130.11,0.8391501]
[1725871018863,20.0,130.17,130.12,4.93893374]
[1725871019081,20.0,130.17,130.11,0.8391501]
[1725871021082,20.0,130.17,130.12,4.93917527]
[1725871021398,20.0,130.17,130.11,0.8391501]
[1725871021574,20.0,130.17,130.12,4.93955366]
[1725871021895,20.0,130.17,130.11,0.8391501]
[1725871022794,27.6824,130.17,130.11,0.8391501]
[1725871024475,20.0,130.17,130.11,0.8391501]
[1725871029882,5.4739,130.18,130.11,0.8391501]
[1725871030799,5.4739,130.18,130.11,45.8391501]
[1725871031500,5.4739,130.18,130.11,0.8391501]
[1725871033681,13.1556,130.18,130.11,0.8391501]
[1725871033893,20.0,130.17,130.11,0.8391501]
[1725871034580,16.5734,130.16,130.11,0.8391501]
[1725871034779,20.0,130.15,130.11,0.8391501]
[1725871035605,27.6835,130.15,130.11,0.8391501]
[1725871036012,6.0455,130.14,130.11,0.8391501]
[1725871036690,27.685,130.13,130.11,0.8391501]
[1725871038011,16.5734,130.12,130.11,0.8391501]
[1725871038321,36.5734,130.12,130.11,0.8391501]
[1725871038680,44.2586,130.12,130.11,0.8391501]
[1725871039301,50.3041,130.12,130.11,0.8391501]
[1725871040210,50.3041,130.12,129.98,17.1674501]
[1725871040211,7.687,130.09,129.98,17.1674501]
[1725871040386,13.8203,130.07,129.98,17.1674501]
[1725871040584,6.1321,130.07,129.98,17.1674501]
[1725871041102,6.1321,130.07,129.99,25.33052505]
[1725871042178,6.1321,130.07,130.0,1.53817961]
[1725871042378,6.1321,130.07,129.99,25.33052505]
[1725871042597,22.6873,130.07,129.98,17.1674501]
[1725871043105,22.6873,130.07,129.99,1.53821596]
[1725871043605,22.6873,130.07,129.98,17.1674501]
[1725871044907,22.6873,130.07,129.99,25.33052505]
[1725871046409,22.6873,130.07,129.98,17.1674501]
[1725871048791,22.6873,130.07,129.98,0.8391501]
[1725871049802,22.6873,130.07,129.98,20.8391501]
[1725871050482,22.6873,130.07,129.98,0.8391501]
[1725871050687,20.0,130.06,129.98,0.8391501]
[1725871051714,6.2117,130.05,129.98,0.8391501]
[1725871052014,15.9307,130.03,129.98,0.8391501]
[1725871054817,6.2117,130.05,129.98,26.16967515]
[1725871065533,6.2117,130.05,129.98,0.8391501]
[1725871069001,16.4661,130.04,129.98,0.8391501]
[1725871072206,6.1505,130.03,129.98,0.8391501]
[1725871072411,15.9022,130.01,129.98,0.8391501]
[1725871072813,6.5609,130.0,129.98,0.8391501]
[1725871090535,14.2532,130.0,129.98,0.8391501]
[1725871090749,20.0,129.99,129.98,0.8391501]
[1725871098339,22.24821596,130.04,129.98,0.8391501]
[1725871098340,6.177,130.03,129.98,0.8391501]
[1725871100455,13.8677,130.03,129.98,0.8391501]
[1725871100627,20.0,130.02,129.98,0.8391501]
[1725871100947,27.6912,130.02,129.98,0.8391501]
[1725871102346,20.0,130.02,129.98,0.8391501]
[1725871102548,7.692,130.01,129.98,0.8391501]
[1725871102754,20.0,130.0,129.98,0.8391501]
[1725871103271,27.6915,130.02,129.98,0.8391501]
[1725871103933,20.0,130.02,129.98,0.8391501]
[1725871104833,6.177,130.03,129.98,0.8391501]
[1725871105348,13.8677,130.03,129.98,0.8391501]
[1725871106329,20.0,130.02,129.98,0.8391501]
[1725871108957,17.78513142,130.07,129.98,0.8391501]
[1725871109159,7.6897,130.05,129.98,0.8391501]
[1725871109344,27.6899,130.04,129.98,0.8391501]
[1725871109656,20.0,130.03,129.98,0.8391501]
[1725871110258,7.6904,130.04,129.98,0.8391501]
[1725871110560,27.6895,130.05,129.98,0.8391501]
[1725871110759,20.0,130.03,129.98,0.8391501]
[1725871110933,27.6895,130.05,129.98,0.8391501]
[1725871111356,7.69,130.04,129.98,0.8391501]
[1725871111556,20.0,130.03,129.98,0.8391501]
[1725871112251,20.0,130.05,129.98,0.8391501]
[1725871112457,7.6901,130.04,129.98,0.8391501]
[1725871112654,20.0,130.03,129.98,0.8391501]
[1725871113156,7.6894,130.05,129.98,0.8391501]
[1725871113157,20.0,130.04,129.98,0.8391501]
[1725871114833,27.69,130.04,129.98,0.8391501]
[1725871116240,7.6906,130.03,129.98,0.8391501]
[1725871116442,7.6911,130.02,129.98,0.8391501]
[1725871116954,7.6914,130.02,129.98,0.8391501]
[1725871117159,20.0,130.01,129.98,0.8391501]